bitfinex-derivatives/quotes_BTCF0:USTF0_20251103
["timestamp","ask_amount","ask_price","bid_price","bid_amount"]
[1762185706998,0.5125823,105740.0,105730.0,0.41692061]
[1762185707397,0.5125823,105740.0,105730.0,0.37186061]
[1762185707593,0.52220168,105740.0,105730.0,0.46646261]
[1762185708399,0.52220168,105740.0,105730.0,0.37186061]
[1762185708599,0.52220168,105740.0,105730.0,0.66324693]
[1762185708800,0.03228938,105740.0,105730.0,0.76007939]
[1762185709002,0.46501208,105740.0,105730.0,0.76007939]
[1762185709200,0.14826208,105740.0,105730.0,0.63153658]
[1762185709497,0.00961938,105740.0,105730.0,0.76009992]
[1762185709699,0.48041689,105760.0,105750.0,0.1404638]
[1762185709901,0.57499179,105760.0,105750.0,0.67416792]
[1762185710405,0.04405,105760.0,105750.0,0.67416792]
[1762185710903,0.02267,105760.0,105750.0,0.70812865]
[1762185711100,0.02267,105760.0,105750.0,1.06892865]
[1762185711298,0.117245,105760.0,105750.0,1.06892865]
[1762185711495,0.138625,105760.0,105750.0,0.61354485]
[1762185711698,0.138634,105750.0,105740.0,0.28927485]
[1762185711998,0.138634,105750.0,105740.0,0.37084073]
[1762185712194,0.499434,105750.0,105740.0,0.37084073]
[1762185712395,0.499434,105750.0,105740.0,0.03396073]
[1762185712892,0.1517831,105740.0,105730.0,0.03396073]
[1762185713197,0.3618,105750.0,105730.0,0.51132283]
[1762185713396,0.3618,105750.0,105730.0,0.46767319]
[1762185713397,0.4994431,105740.0,105730.0,0.46767319]
[1762185713610,0.5125831,105740.0,105730.0,0.48819283]
[1762185713803,0.5125831,105740.0,105730.0,0.37084073]
[1762185714207,0.41799,105740.0,105730.0,0.46544283]
[1762185714604,0.40485,105740.0,105730.0,0.38821868]
[1762185714803,0.4994431,105740.0,105730.0,0.32757232]
[1762185715004,0.4994431,105740.0,105730.0,0.37122176]
[1762185715206,0.499443,105740.0,105730.0,0.37122176]
[1762185715402,0.38447,105750.0,105740.0,0.04588]
[1762185715600,0.38447,105750.0,105740.0,0.61345524]
[1762185715601,0.40585,105750.0,105740.0,0.61345524]
[1762185715802,0.500434,105750.0,105740.0,0.70804824]
[1762185716004,0.04405,105750.0,105740.0,0.7590007]
[1762185716206,0.04405,105750.0,105740.0,0.72504958]
[1762185716703,0.04405,105750.0,105740.0,0.73769958]
[1762185717212,0.5004338,105750.0,105740.0,0.09683246]
[1762185717412,0.5004338,105750.0,105740.0,0.63045658]
[1762185717610,0.5004338,105750.0,105740.0,0.41667265]
[1762185717914,0.5004338,105750.0,105740.0,0.72069957]
[1762185717915,0.38447,105750.0,105740.0,0.72069957]
[1762185718306,0.38447,105750.0,105740.0,0.73769938]
[1762185718503,0.02367,105750.0,105740.0,0.73769938]
[1762185718909,0.001,105750.0,105740.0,0.73769938]
[1762185719105,0.001,105750.0,105740.0,1.09849938]
[1762185719413,0.001,105750.0,105740.0,0.73769938]
[1762185719615,0.04505,105750.0,105740.0,0.73769938]
[1762185720208,0.02238,105750.0,105740.0,1.09849938]
[1762185720424,0.001,105750.0,105740.0,1.04754692]
[1762185720613,0.00957301,105770.0,105760.0,0.05853]
[1762185720904,0.45025859,105780.0,105770.0,0.1404461]
[1762185720905,0.48168859,105780.0,105770.0,0.1404461]
[1762185721110,0.40485,105790.0,105780.0,0.02275]
[1762185721306,0.40485,105790.0,105780.0,0.35955]
[1762185721503,0.39312802,105790.0,105780.0,0.7206225]
[1762185722016,0.37045802,105790.0,105780.0,0.77155126]
[1762185722210,0.00965802,105790.0,105780.0,1.13231501]
[1762185722406,0.02138,105790.0,105780.0,0.18088506]
[1762185722605,0.40485,105790.0,105780.0,0.30845983]
[1762185722810,0.04405,105780.0,105770.0,0.35939779]
[1762185723014,0.02267,105770.0,105760.0,0.08484117]
[1762185723212,0.40485,105770.0,105760.0,0.55066353]
[1762185723410,0.04405,105770.0,105760.0,0.65788803]
[1762185723612,0.40485,105770.0,105760.0,0.03391241]
[1762185723916,0.40485,105770.0,105750.0,0.04588]
[1762185723917,0.05719,105760.0,105750.0,0.04588]
[1762185724120,0.04405,105750.0,105740.0,0.22655353]
[1762185724320,0.05719,105740.0,105730.0,0.03391241]
[1762185724515,0.02267,105730.0,105720.0,0.03391241]
[1762185724712,0.40485,105730.0,105720.0,0.03391241]
[1762185725211,0.04405,105730.0,105720.0,0.21390353]
[1762185725420,0.40485,105730.0,105720.0,0.03391241]
[1762185725614,0.41799,105740.0,105730.0,0.02275]
[1762185725813,0.05719,105740.0,105730.0,0.28537543]
[1762185726122,0.1386416,105740.0,105730.0,0.60155229]
[1762185726320,0.38347,105750.0,105740.0,0.1173416]
[1762185726514,0.720194,105760.0,105740.0,0.32114513]
[1762185726715,0.764244,105760.0,105750.0,0.27457282]
[1762185727016,0.5220962,105760.0,105750.0,0.64520463]
[1762185727220,0.4994153,105770.0,105760.0,0.04588]
[1762185727416,0.4994142,105770.0,105760.0,0.17999112]
[1762185728014,0.40485,105770.0,105760.0,0.27456432]
[1762185728409,0.4994143,105770.0,105760.0,0.27456432]
[1762185728608,0.4994143,105770.0,105760.0,0.17999112]
[1762185729008,0.1386232,105760.0,105750.0,0.60155229]
[1762185729214,0.1386232,105760.0,105750.0,0.69613449]
[1762185729414,0.4994232,105760.0,105750.0,0.55062353]
[1762185729830,0.40485,105760.0,105750.0,0.64520573]
[1762185730115,0.04405,105760.0,105750.0,0.64520573]
[1762185730318,0.41406908,105760.0,105750.0,0.51109461]
[1762185730622,0.52178228,105760.0,105750.0,0.55062353]
[1762185730915,0.52178228,105760.0,105740.0,0.32114393]
[1762185730916,0.1386321,105750.0,105740.0,0.32114393]
[1762185731109,0.40485,105750.0,105740.0,0.65786393]
[1762185731317,0.02267,105750.0,105740.0,1.03568028]
[1762185731517,0.39268908,105760.0,105750.0,0.1404621]
[1762185731716,0.00921908,105760.0,105750.0,0.35943189]
[1762185732016,0.75467,105780.0,105770.0,0.1404448]
[1762185732214,0.8492253,105780.0,105770.0,0.27455572]
[1762185732415,0.8360853,105780.0,105770.0,0.27455572]
[1762185732812,0.8492253,105780.0,105770.0,0.17999112]
[1762185733010,0.8492253,105780.0,105770.0,0.27455522]
[1762185733209,0.1386141,105770.0,105760.0,0.5505967]
[1762185733409,0.1517631,105760.0,105750.0,0.5505967]
[1762185733619,0.5125631,105760.0,105750.0,0.27457372]
[1762185733912,0.5125631,105760.0,105750.0,0.3084993]
[1762185733913,0.40485,105760.0,105750.0,0.3084993]
[1762185734118,0.02267,105760.0,105750.0,0.35938768]
[1762185734412,0.0216,105780.0,105770.0,0.1392755]
[1762185734616,0.5740998,105790.0,105780.0,0.1392665]
[1762185734813,0.9107798,105790.0,105780.0,0.04471]
[1762185735124,0.48892116,105790.0,105780.0,0.27337762]
[1762185735430,0.50766536,105790.0,105780.0,0.32042504]
[1762185735609,0.39151896,105790.0,105780.0,0.65710504]
[1762185735808,0.39151896,105790.0,105780.0,0.56254854]
[1762185735809,0.37016896,105790.0,105780.0,0.56254854]
[1762185736010,0.50766536,105790.0,105780.0,0.51550112]
[1762185736216,0.1375054,105780.0,105770.0,0.15707112]
[1762185736415,0.1161644,105770.0,105760.0,0.20411854]
[1762185736619,0.4983144,105770.0,105760.0,0.56250854]
[1762185736822,0.4983144,105770.0,105760.0,0.3596]
[1762185737219,0.4983144,105770.0,105760.0,0.02296]
[1762185737413,0.05619,105760.0,105750.0,0.27340342]
[1762185737623,0.5115634,105760.0,105750.0,0.22869342]
[1762185737812,0.3824,105770.0,105760.0,0.1392834]
[1762185738122,0.1507636,105760.0,105750.0,0.17882112]
[1762185738317,0.1375321,105750.0,105740.0,0.55554467]
[1762185738618,0.0945914,105740.0,105730.0,0.30733784]
[1762185738926,0.4983394,105750.0,105740.0,0.02296]
[1762185739115,0.4983394,105750.0,105740.0,0.15707112]
[1762185739512,0.1161912,105740.0,105730.0,0.50466854]
[1762185739713,0.5115812,105740.0,105730.0,0.33664]
[1762185739923,0.1375483,105730.0,105720.0,0.21273854]
[1762185740123,0.4983483,105730.0,105720.0,0.21273854]
[1762185740425,0.40375,105730.0,105720.0,0.21273854]
[1762185740614,0.4983495,105730.0,105720.0,0.21273854]
[1762185741324,0.4983495,105730.0,105720.0,0.68079614]
[1762185741325,0.0216,105730.0,105720.0,0.68079614]
[1762185741529,0.4769987,105730.0,105720.0,0.27625738]
[1762185741822,0.1375487,105730.0,105720.0,0.26360738]
[1762185742027,0.4983487,105730.0,105720.0,0.16802125]
[1762185742218,0.4983487,105730.0,105720.0,0.13411112]
[1762185742413,0.40375,105730.0,105720.0,0.13911112]
[1762185742619,0.04295,105730.0,105720.0,0.21773125]
[1762185742816,0.4983488,105730.0,105720.0,0.21773125]
[1762185743123,0.4983488,105730.0,105720.0,0.19598125]
[1762185743315,0.4983488,105730.0,105720.0,0.19098125]
[1762185743517,0.4983488,105730.0,105720.0,0.19598125]
[1762185743718,0.4983488,105730.0,105720.0,0.16207112]
[1762185744115,0.7348288,105730.0,105720.0,0.005]
[1762185744320,0.5078875,105730.0,105720.0,0.005]
[1762185745125,0.50738725,105730.0,105720.0,0.005]
[1762185745515,0.74386725,105730.0,105720.0,0.005]
[1762185745721,0.05619,105700.0,105690.0,0.16624099]
[1762185745917,0.0216,105680.0,105670.0,0.07383613]
[1762185746227,0.05619,105680.0,105670.0,0.22969725]
[1762185746727,0.04303479,105680.0,105670.0,0.22969725]
[1762185746927,0.04465,105670.0,105660.0,0.39063921]
[1762185747130,0.48248984,105670.0,105660.0,0.4738742]
[1762185747424,0.40545,105670.0,105660.0,0.00312308]
[1762185747623,0.40425,105670.0,105660.0,0.1372342]
[1762185747930,0.75500479,105680.0,105660.0,0.1500242]
[1762185748224,0.75500479,105680.0,105660.0,0.02470308]
[1762185748225,0.5001034,105670.0,105660.0,0.02470308]
[1762185748422,0.5001034,105670.0,105660.0,0.00312308]
[1762185748816,0.40145,105670.0,105660.0,0.00312308]
[1762185749014,0.04065,105670.0,105660.0,0.48016458]
[1762185749221,0.04065,105670.0,105660.0,0.04709308]
[1762185749422,0.1353025,105670.0,105660.0,0.1862042]
[1762185749624,0.04065,105670.0,105660.0,0.1862042]
[1762185749923,0.04065,105670.0,105660.0,0.2808654]
[1762185750225,0.4961023,105670.0,105660.0,0.1422342]
[1762185751224,0.4961023,105670.0,105660.0,0.00812308]
[1762185751723,0.4961023,105670.0,105660.0,0.1422342]
[1762185751920,0.1353023,105670.0,105660.0,0.1862042]
[1762185752529,0.4961023,105670.0,105660.0,0.1862042]
[1762185752732,0.1353023,105670.0,105660.0,0.1862042]
[1762185753024,0.1353023,105670.0,105660.0,0.2072042]
[1762185753025,0.4961023,105670.0,105660.0,0.2072042]
[1762185753229,0.1353023,105670.0,105660.0,0.2072042]
[1762185753523,0.07642846,105680.0,105670.0,0.04397]
[1762185753727,0.17107206,105680.0,105670.0,0.51480112]
[1762185753923,0.57652206,105680.0,105670.0,0.51480112]
[1762185754128,0.13937839,105680.0,105670.0,0.74149]
[1762185754722,0.13937839,105680.0,105670.0,0.87560112]
[1762185755031,0.51300839,105680.0,105670.0,0.51480112]
[1762185755217,0.51300839,105680.0,105670.0,0.87560112]
[1762185755218,0.04473479,105680.0,105670.0,0.87560112]
[1762185755421,0.11728829,105680.0,105670.0,0.87560112]
[1762185755620,0.51300829,105680.0,105670.0,0.51680112]
[1762185756125,0.51300829,105680.0,105670.0,0.15769112]
[1762185756331,0.84972829,105680.0,105670.0,0.002]
[1762185756627,0.84972829,105680.0,105670.0,0.15411112]
[1762185757628,0.84972829,105680.0,105670.0,0.02]
[1762185758028,0.84972829,105680.0,105670.0,0.19808112]
[1762185758029,0.51300829,105680.0,105670.0,0.19808112]
[1762185758329,0.15220829,105680.0,105670.0,0.19808112]
[1762185758628,0.51300829,105680.0,105670.0,0.19808112]
[1762185758817,0.13937819,105680.0,105670.0,0.19808112]
[1762185759025,0.13937819,105680.0,105670.0,0.29273352]
[1762185759227,0.13937819,105680.0,105670.0,0.65353352]
[1762185759434,0.13937819,105680.0,105670.0,0.19808112]
[1762185759732,0.50017819,105680.0,105670.0,0.06397]
[1762185759933,8.479e-05,105680.0,105670.0,0.65353352]
[1762185760728,8.479e-05,105680.0,105670.0,1.02420464]
[1762185761027,8.479e-05,105680.0,105670.0,1.02420484]
[1762185761028,0.09472839,105680.0,105670.0,1.02420484]
[1762185761233,8.479e-05,105680.0,105670.0,0.65353372]
[1762185761528,8.479e-05,105680.0,105670.0,1.02420484]
[1762185761729,8.479e-05,105680.0,105670.0,1.13216112]
[1762185761931,8.479e-05,105680.0,105670.0,0.89560112]
[1762185762428,0.09472779,105680.0,105670.0,0.19808112]
[1762185762732,0.13937779,105680.0,105670.0,0.89560112]
[1762185762926,0.13937779,105680.0,105670.0,0.99025312]
[1762185762927,0.04473479,105680.0,105670.0,0.99025312]
[1762185763128,8.479e-05,105680.0,105670.0,0.99025312]
[1762185763330,0.09472779,105680.0,105670.0,0.99025312]
[1762185763533,8.479e-05,105680.0,105670.0,0.99025312]
[1762185763735,8.479e-05,105680.0,105670.0,1.36092424]
[1762185764032,8.479e-05,105680.0,105670.0,0.99025312]
[1762185764234,0.09472879,105680.0,105670.0,1.02971224]
[1762185764433,0.09472879,105680.0,105670.0,0.99025332]
[1762185764729,8.479e-05,105680.0,105670.0,1.12436444]
[1762185765124,0.13931879,105680.0,105670.0,0.89560112]
[1762185765439,0.13931879,105680.0,105670.0,0.76149]
[1762185765630,0.13931879,105680.0,105670.0,0.89560112]
[1762185766026,0.13931879,105680.0,105670.0,0.53480112]
[1762185766232,0.13931879,105680.0,105670.0,0.19808112]
[1762185766436,0.13931879,105680.0,105670.0,0.53476112]
[1762185766633,0.50011879,105680.0,105670.0,0.19808112]
[1762185766934,0.51305879,105680.0,105670.0,0.15411112]
[1762185767438,0.40547479,105680.0,105670.0,0.29506322]
[1762185767634,0.13931789,105680.0,105670.0,0.29506322]
[1762185768036,0.02264479,105680.0,105670.0,0.65586322]
[1762185768334,0.09472789,105680.0,105670.0,0.65586322]
[1762185768535,8.479e-05,105680.0,105670.0,0.5217521]
[1762185768834,0.11575789,105680.0,105670.0,0.56121112]
[1762185769030,0.13778789,105680.0,105670.0,0.56121112]
[1762185769231,0.13778789,105680.0,105670.0,0.65586322]
[1762185769232,0.11575789,105680.0,105670.0,0.65586322]
[1762185770026,0.02111479,105680.0,105670.0,0.65586322]
[1762185770233,0.11575799,105680.0,105670.0,0.65586322]
[1762185770535,0.49858799,105680.0,105670.0,0.20041112]
[1762185771036,0.51152799,105680.0,105670.0,0.15411112]
[1762185772542,0.84816799,105680.0,105670.0,0.15411112]
[1762185772842,0.84816789,105680.0,105670.0,0.20041112]
[1762185773136,0.15072789,105680.0,105670.0,0.29506312]
[1762185773342,0.13778789,105680.0,105670.0,0.40294]
[1762185773534,0.13778789,105680.0,105670.0,0.63170292]
[1762185773834,0.13778769,105680.0,105670.0,0.53705112]
[1762185774040,0.51152769,105680.0,105670.0,0.53705112]
[1762185774426,0.04314479,105680.0,105670.0,0.58792725]
[1762185775033,0.04314479,105680.0,105670.0,0.94872725]
[1762185775338,8.479e-05,105680.0,105670.0,0.94872725]
[1762185776243,0.02111479,105680.0,105670.0,0.81461613]
[1762185776540,8.479e-05,105680.0,105670.0,0.81461613]
[1762185776741,8.479e-05,105680.0,105670.0,0.94872725]
[1762185777143,0.36088479,105680.0,105670.0,0.47075112]
[1762185777338,0.41688479,105680.0,105670.0,0.51705112]
[1762185778643,0.41688479,105680.0,105670.0,0.18041112]
[1762185778841,0.41688479,105680.0,105670.0,0.51701112]
[1762185780443,0.04306,105670.0,105660.0,0.04942308]
[1762185780638,0.40386,105670.0,105660.0,0.5201342]
[1762185781549,0.37382479,105680.0,105670.0,0.0463]
[1762185781848,0.37382479,105680.0,105670.0,0.18041112]
[1762185782039,0.41688479,105680.0,105670.0,0.18041112]
[1762185782442,0.41688479,105680.0,105670.0,0.24342148]
[1762185784346,0.41688479,105680.0,105670.0,0.57998148]
[1762185785434,0.41688479,105680.0,105670.0,0.59098148]
[1762185786048,0.41688479,105680.0,105670.0,0.65882317]
[1762185786746,0.36088479,105680.0,105670.0,0.65882317]
[1762185787446,0.3608,105710.0,105700.0,0.0463]
[1762185787652,0.40386,105710.0,105700.0,0.61397299]
[1762185787963,0.38183,105710.0,105700.0,0.61397299]
[1762185788249,0.47816138,105710.0,105700.0,0.37055151]
[1762185788437,0.47816138,105710.0,105690.0,0.64778317]
[1762185788438,0.056,105700.0,105690.0,0.64778317]
[1762185788636,0.4168,105700.0,105690.0,0.24342148]
[1762185788849,0.4168,105700.0,105690.0,0.31126317]
[1762185789053,0.4168,105700.0,105690.0,0.24342148]
[1762185791352,0.4168,105700.0,105690.0,0.57990148]
[1762185791551,0.4188,105700.0,105690.0,0.57990148]
[1762185792453,0.4188,105700.0,105690.0,0.58390148]
[1762185792849,0.3628,105700.0,105690.0,0.58390148]
[1762185793046,0.4188,105700.0,105690.0,0.58390148]
[1762185793247,0.38383,105700.0,105690.0,0.58390148]
[1762185793442,0.3628,105700.0,105690.0,0.58390148]
[1762185793655,0.3628,105700.0,105690.0,0.65174317]
[1762185793858,0.4188,105700.0,105690.0,0.24742148]
[1762185794149,0.4188,105700.0,105690.0,0.58386148]
[1762185794756,0.3628,105700.0,105690.0,0.58386148]
[1762185794951,0.3628,105700.0,105690.0,0.65170317]
[1762185795153,0.3628,105700.0,105690.0,0.88822317]
[1762185795350,0.3628,105700.0,105690.0,0.7558931]
[1762185795554,0.3628,105700.0,105690.0,0.9924131]
[1762185795756,0.3628,105700.0,105690.0,0.98283502]
[1762185796053,0.06911552,105700.0,105690.0,0.93653502]
[1762185796361,0.05142676,105730.0,105690.0,1.31446627]
[1762185796556,0.41222676,105730.0,105720.0,0.2310788]
[1762185796858,0.05544,105740.0,105720.0,0.9282788]
[1762185797050,0.01324,105740.0,105720.0,1.25933065]
[1762185797246,0.05544,105740.0,105730.0,0.03395732]
[1762185797446,0.02263932,105740.0,105730.0,0.39475732]
[1762185797654,0.00939932,105740.0,105730.0,0.03395732]
[1762185797862,0.41594,105760.0,105730.0,0.72578232]
[1762185798155,0.42545545,105760.0,105740.0,0.89428148]
[1762185798358,0.06465545,105760.0,105740.0,0.89428148]
[1762185798552,0.06465545,105760.0,105750.0,0.3608]
[1762185799054,0.02245545,105760.0,105750.0,0.3608]
[1762185799255,0.02245545,105760.0,105750.0,0.45535817]
[1762185799457,0.04359545,105760.0,105750.0,0.45535817]
[1762185799658,0.40439545,105760.0,105750.0,0.43087817]
[1762185799853,0.42545545,105760.0,105750.0,0.33632]
[1762185800159,0.0422,105750.0,105740.0,0.19712148]
[1762185800468,0.05502,105740.0,105720.0,0.64281352]
[1762185800755,0.63065545,105760.0,105730.0,0.79163817]
[1762185800756,0.43645545,105760.0,105730.0,0.79163817]
[1762185800954,0.43645545,105760.0,105740.0,0.55792148]
[1762185801156,0.43645545,105760.0,105750.0,0.33628]
[1762185801358,0.42545545,105760.0,105750.0,0.33628]
[1762185802059,0.06465545,105760.0,105750.0,0.53340148]
[1762185802258,0.00951545,105760.0,105750.0,0.53340148]
[1762185802453,0.003,105770.0,105750.0,1.22515965]
[1762185802647,0.01282,105760.0,105750.0,0.98875965]
[1762185802858,0.05502,105760.0,105750.0,0.69708]
[1762185803057,0.05502,105760.0,105740.0,0.55792148]
[1762185803256,0.0222423,105760.0,105750.0,0.69704]
[1762185803558,0.003,105770.0,105750.0,0.93344]
[1762185803759,0.003,105770.0,105760.0,0.55792148]
[1762185803962,0.01235904,105770.0,105760.0,0.55792148]
[1762185804160,0.003,105770.0,105760.0,0.79428148]
[1762185804463,0.003,105770.0,105760.0,0.88883071]
[1762185805159,0.003,105770.0,105760.0,0.65247071]
[1762185805355,0.003,105770.0,105760.0,0.88883071]
[1762185805860,0.011,105770.0,105760.0,0.88883071]
[1762185806263,0.49195609,105800.0,105760.0,0.88883071]
[1762185806456,0.49195609,105800.0,105790.0,0.19712148]
[1762185806658,0.50150958,105800.0,105790.0,0.53328148]
[1762185806858,0.50150958,105800.0,105790.0,0.33616]
[1762185807057,0.05502,105780.0,105770.0,0.55792148]
[1762185807362,0.05502,105780.0,105770.0,0.89408148]
[1762185807662,0.01282,105780.0,105770.0,0.65248638]
[1762185807963,0.14227189,105800.0,105790.0,0.0945462]
[1762185808153,0.14227189,105800.0,105790.0,0.89404148]
[1762185808357,0.53668189,105800.0,105790.0,0.53324148]
[1762185808558,0.1348133,105780.0,105770.0,0.55792148]
[1762185808749,0.1348133,105780.0,105770.0,0.89404148]
[1762185808949,0.1604233,105780.0,105770.0,0.89404148]
[1762185809155,0.04026,105780.0,105770.0,1.0225631]
[1762185809357,0.0259,105780.0,105770.0,1.0225631]
[1762185809661,0.011,105780.0,105770.0,1.0225631]
[1762185809958,0.011,105780.0,105770.0,1.2589231]
[1762185810258,0.05126,105780.0,105770.0,1.0225634]
[1762185810854,0.1458144,105780.0,105770.0,0.9279988]
[1762185811165,0.1458144,105780.0,105770.0,0.89400148]
[1762185811166,0.1714244,105780.0,105770.0,0.89400148]
[1762185811760,0.1714244,105780.0,105770.0,0.98856648]
[1762185812070,0.145535,105770.0,105760.0,0.7914139]
[1762185812757,0.145535,105770.0,105760.0,0.69684]
[1762185812951,0.05097,105770.0,105760.0,0.791414]
[1762185813368,0.05097,105770.0,105760.0,0.82537132]
[1762185813554,0.1455332,105770.0,105760.0,0.82537132]
[1762185813755,0.1455332,105770.0,105760.0,0.82536952]
[1762185814063,0.1455332,105770.0,105760.0,0.73079732]
[1762185814266,0.1455332,105770.0,105760.0,0.69684]
[1762185814663,0.1604439,105760.0,105750.0,0.39475732]
[1762185814862,0.1604439,105760.0,105750.0,0.3608]
[1762185815666,0.1455529,105750.0,105740.0,0.9278788]
[1762185815864,0.1455529,105750.0,105740.0,1.0224696]
[1762185816069,0.05097,105750.0,105740.0,1.0224696]
[1762185816368,0.0149,105760.0,105750.0,0.0945818]
[1762185816558,0.06587,105760.0,105750.0,0.53977052]
[1762185816754,0.1654419,105760.0,105750.0,0.39455549]
[1762185817162,0.1654419,105760.0,105750.0,0.44518872]
[1762185817465,0.1604419,105760.0,105750.0,0.53976962]
[1762185817661,0.06587,105760.0,105750.0,0.53976962]
[1762185817855,0.04026,105760.0,105750.0,0.50601413]
[1762185818266,0.1604419,105760.0,105750.0,0.44519681]
[1762185818567,0.1604419,105760.0,105750.0,0.53977771]
[1762185818763,0.06587,105760.0,105750.0,0.44519681]
[1762185818968,0.04026,105760.0,105750.0,0.53977771]
[1762185819172,0.04026,105760.0,105750.0,0.50601413]
[1762185819467,0.1604419,105760.0,105750.0,0.39457541]
[1762185819860,0.1604419,105760.0,105750.0,0.03377541]
[1762185820057,0.1624419,105760.0,105750.0,0.03377541]
[1762185820464,0.1624419,105760.0,105750.0,0.39457541]
[1762185820662,0.1624419,105760.0,105750.0,0.44520864]
[1762185821057,0.1624419,105760.0,105750.0,0.53979154]
[1762185821366,0.06787,105760.0,105750.0,0.4553829]
[1762185821668,0.1624419,105760.0,105750.0,0.3608]
[1762185821972,0.1624419,105760.0,105750.0,0.455381]
[1762185822266,0.1455526,105750.0,105740.0,1.03914091]
[1762185822474,0.1455526,105750.0,105740.0,0.94463823]
[1762185822766,0.05097,105750.0,105740.0,0.84210835]
[1762185823070,0.05097,105750.0,105740.0,1.03922776]
[1762185823267,0.1455515,105750.0,105740.0,1.03925389]
[1762185823469,0.1455515,105750.0,105740.0,0.94466229]
[1762185823764,0.1455515,105750.0,105740.0,0.58386229]
[1762185823966,0.1455515,105750.0,105740.0,0.94466229]
[1762185823967,0.05097,105750.0,105740.0,0.94466229]
[1762185824161,0.1465515,105750.0,105740.0,0.74754081]
[1762185824359,0.1465515,105750.0,105740.0,0.98851188]
[1762185824671,0.04961,105750.0,105740.0,1.05642652]
[1762185825168,0.04961,105750.0,105740.0,0.6968]
[1762185825169,0.1441915,105750.0,105740.0,0.6968]
[1762185825364,0.1574404,105740.0,105730.0,0.72043282]
[1762185825565,0.06285,105740.0,105730.0,0.72043282]
[1762185825865,0.04961,105750.0,105740.0,0.0945917]
[1762185826067,0.001,105750.0,105740.0,1.05634782]
[1762185827070,0.02598,105750.0,105740.0,1.06434782]
[1762185827260,0.02498,105750.0,105740.0,1.06434782]
[1762185827570,0.06351,105760.0,105750.0,0.0945821]
[1762185827761,0.06351,105760.0,105750.0,0.4553821]
[1762185828269,0.0149,105760.0,105750.0,0.4553821]
[1762185828457,0.0149,105760.0,105750.0,0.52329674]
[1762185828970,0.06551,105760.0,105750.0,0.52329674]
[1762185829163,0.06551,105760.0,105750.0,0.65750358]
[1762185829775,0.0169,105760.0,105750.0,0.65750358]
[1762185830072,0.1600822,105760.0,105750.0,0.65750358]
[1762185830263,0.1600822,105760.0,105750.0,0.63083612]
[1762185830458,0.1600822,105760.0,105750.0,0.89876148]
[1762185830675,0.1600822,105760.0,105750.0,0.99334278]
[1762185830971,0.1600829,105760.0,105750.0,0.99334388]
[1762185831364,0.06551,105760.0,105750.0,0.99334388]
[1762185831561,0.1600832,105760.0,105750.0,1.06125852]
[1762185831872,0.06521348,105760.0,105750.0,0.99334388]
[1762185832263,0.06521348,105760.0,105750.0,1.06125852]
[1762185832872,0.01660348,105760.0,105750.0,1.06125852]
[1762185833071,0.06485,105760.0,105750.0,1.06125852]
[1762185834170,0.002,105760.0,105750.0,0.99334388]
[1762185834369,0.002,105760.0,105750.0,1.07831682]
[1762185834967,0.002,105760.0,105750.0,0.88119534]
[1762185835276,0.1594234,105760.0,105750.0,1.06124891]
[1762185835664,0.1594234,105760.0,105750.0,0.99330388]
[1762185835867,0.06485,105760.0,105750.0,1.06124891]
[1762185836068,0.1594235,105760.0,105750.0,0.96666651]
[1762185836280,0.1594235,105760.0,105750.0,0.3658]
[1762185836471,0.1594235,105760.0,105750.0,0.43374503]
[1762185836671,0.1594235,105760.0,105750.0,0.3658]
[1762185836871,0.1594235,105760.0,105750.0,0.65750398]
[1762185837174,0.06485,105760.0,105750.0,0.65750398]
[1762185837476,0.1594233,105760.0,105750.0,0.63086651]
[1762185837677,0.1594233,105760.0,105750.0,0.56292148]
[1762185837863,0.1594233,105760.0,105750.0,0.63086651]
[1762185838068,0.1594233,105760.0,105750.0,0.72544881]
[1762185839276,0.002,105760.0,105750.0,0.65750378]
[1762185839480,0.002,105760.0,105750.0,0.74247672]
[1762185840176,0.002,105760.0,105750.0,0.97887672]
[1762185840489,0.06485,105760.0,105750.0,1.06128783]
[1762185840865,0.1594236,105760.0,105750.0,0.72552783]
[1762185841065,0.1594236,105760.0,105750.0,1.06128783]
[1762185841376,0.1594236,105760.0,105750.0,1.06128773]
[1762185841578,0.06485,105760.0,105750.0,1.06128773]
[1762185841873,0.1594236,105760.0,105750.0,0.99326398]
[1762185842069,0.1594236,105760.0,105750.0,0.43383829]
[1762185842270,0.1594236,105760.0,105750.0,0.76959829]
[1762185842481,0.3958236,105760.0,105750.0,0.3658]
[1762185842872,0.3958236,105760.0,105750.0,0.005]
[1762185843074,0.3958236,105760.0,105750.0,0.05603275]
[1762185843273,0.1431928,105750.0,105740.0,0.3608]
[1762185843479,0.1431928,105750.0,105730.0,0.06803829]
[1762185843480,0.1574418,105740.0,105730.0,0.06803829]
[1762185843680,0.04861,105730.0,105720.0,0.65253118]
[1762185843876,0.04861,105730.0,105720.0,0.7589329]
[1762185844077,0.04861,105730.0,105720.0,1.0946529]
[1762185844275,0.1574418,105740.0,105730.0,0.1329607]
[1762185844480,0.1574418,105740.0,105730.0,0.69602464]
[1762185844679,0.00959583,105740.0,105730.0,0.6280166]
[1762185844990,0.1614269,105760.0,105750.0,0.03836]
[1762185845187,0.1614269,105760.0,105750.0,0.4950559]
[1762185845487,0.14299521,105750.0,105740.0,0.89877533]
[1762185845670,0.04841231,105750.0,105740.0,0.56215173]
[1762185845876,0.04841231,105750.0,105740.0,0.69640763]
[1762185846276,0.04841231,105750.0,105740.0,0.56305533]
[1762185846277,0.14299511,105750.0,105740.0,0.56305533]
[1762185846577,0.1574417,105740.0,105730.0,1.01275103]
[1762185846786,0.06285,105740.0,105730.0,1.37355103]
[1762185847282,0.04961,105750.0,105740.0,0.1333434]
[1762185847584,0.02598,105750.0,105740.0,0.69638188]
[1762185847781,0.1441924,105750.0,105740.0,0.46754258]
[1762185847993,0.1441924,105750.0,105740.0,0.3638]
[1762185848288,0.1441924,105750.0,105740.0,0.43178258]
[1762185848583,0.3805924,105750.0,105740.0,0.003]
[1762185848788,0.1441924,105750.0,105740.0,0.003]
[1762185849277,0.06285,105740.0,105730.0,0.56214218]
[1762185849477,0.1574414,105740.0,105730.0,0.69639808]
[1762185849673,0.1574414,105740.0,105730.0,0.6284155]
[1762185849873,0.1471924,105750.0,105740.0,0.1333513]
[1762185850078,0.1461924,105750.0,105740.0,0.69637876]
[1762185850286,0.1461924,105750.0,105740.0,0.60178746]
[1762185850480,0.3825924,105750.0,105740.0,0.3608]
[1762185850686,0.1574413,105740.0,105730.0,0.69648]
[1762185850878,0.1574413,105740.0,105730.0,0.4950559]
[1762185851078,0.1574413,105740.0,105730.0,0.6090359]
[1762185851278,0.1574413,105740.0,105730.0,0.3608]
[1762185851485,0.1574413,105740.0,105730.0,0.4554]
[1762185851788,0.1574413,105740.0,105730.0,0.4950559]
[1762185852185,0.06285,105740.0,105730.0,0.6284159]